bitfinex/quotes_ETHUSD_20241104
["timestamp","ask_amount","ask_price","bid_price","bid_amount"]
[1730723136350,5.67833828,2478.2,2477.8,0.8026]
[1730723136351,4.03541,2478.1,2477.8,0.8026]
[1730723136545,4.03541,2478.1,2477.9,0.54887544]
[1730723136746,1.64314828,2478.2,2478.0,0.211103]
[1730723137052,4.03513,2478.3,2478.1,0.21108803]
[1730723137249,4.03513,2478.3,2477.9,0.55]
[1730723137445,4.03518,2478.2,2478.1,0.55]
[1730723137988,4.03543,2478.1,2477.9,0.55]
[1730723138149,4.03543,2478.1,2478.0,0.76105853]
[1730723139302,4.03519,2478.2,2478.0,0.76105853]
[1730723139510,4.03519,2478.2,2477.8,0.55]
[1730723139706,4.03519,2478.2,2478.0,0.55]
[1730723139911,4.03519,2478.2,2477.8,0.55]
[1730723140108,4.03519,2478.2,2478.0,0.55]
[1730723140286,4.03513,2478.3,2478.0,1.3812]
[1730723141025,4.03512,2478.3,2478.0,1.3812]
[1730723141176,4.03532,2478.2,2477.8,1.3812]
[1730723141376,4.03424905,2478.2,2478.0,0.55]
[1730723141925,4.03424905,2478.2,2477.9,0.55]
[1730723142122,4.03551,2478.0,2477.9,0.55]
[1730723142276,4.03551,2478.0,2477.7,0.55]
[1730723142474,4.03551,2478.0,2477.9,0.55]
[1730723142714,4.03551,2478.0,2477.4,1.2228053]
[1730723142715,0.7719,2477.9,2477.4,1.2228053]
[1730723142982,0.7719,2477.9,2477.5,0.54837633]
[1730723142983,4.03616,2477.6,2477.5,0.54837633]
[1730723143181,4.80806,2477.6,2477.5,0.21090633]
[1730723143387,0.7719,2477.6,2477.2,0.801]
[1730723143604,4.80813,2477.6,2477.3,0.21085231]
[1730723143899,4.03636,2477.5,2477.4,0.21085231]
[1730723144294,4.80813,2477.6,2477.2,0.801]
[1730723144295,0.7719,2477.6,2477.2,0.801]
[1730723144506,4.80808,2477.6,2477.4,0.55]
[1730723145373,3.80808,2477.6,2477.4,0.55]
[1730723146476,4.03596,2477.8,2477.4,0.55]
[1730723146675,4.0357,2477.9,2477.5,0.8133]
[1730723146919,4.0357,2477.9,2477.6,1.089966]
[1730723147077,4.03551,2478.0,2477.6,1.089966]
[1730723147280,3.81670561,2478.3,2477.6,1.089966]
[1730723147281,4.03518,2478.2,2477.8,0.55]
[1730723147497,4.03518,2478.2,2477.9,0.8226]
[1730723147498,4.03526,2478.2,2477.9,0.8226]
[1730723147806,4.03516,2478.3,2478.0,0.55]
[1730723147807,4.03505,2478.3,2478.0,0.55]
[1730723147988,4.03505,2478.3,2478.0,0.98726]
[1730723148911,0.7667,2478.5,2478.0,0.98726]
[1730723148912,4.03519,2478.2,2478.0,0.98726]
[1730723149822,4.03486,2478.4,2478.0,0.98726]
[1730723150680,4.03511,2478.3,2478.0,0.98726]
[1730723150917,4.07443827,2478.3,2478.0,0.98726]
[1730723151515,8.10960827,2478.3,2478.0,0.98726]
[1730723151710,4.07443827,2478.3,2478.0,0.98726]
[1730723152916,4.03518,2478.2,2478.0,0.55]
[1730723153122,4.03541,2478.1,2477.8,0.55]
[1730723153322,0.0378427,2478.1,2477.8,0.55]
[1730723153615,0.0378427,2478.1,2478.0,4.58551]
[1730723153819,4.03487,2478.4,2478.0,4.58551]
[1730723153981,4.03487,2478.4,2478.0,0.55]
[1730723154382,4.07304027,2478.3,2478.0,0.55]
[1730723154603,4.07304027,2478.3,2478.0,1.088909]
[1730723155623,0.03801027,2478.3,2478.0,1.088909]
[1730723155792,4.03493,2478.4,2478.0,0.55]
[1730723155995,4.03503,2478.3,2478.0,0.55]
[1730723156307,4.07162807,2478.3,2478.0,0.55]
[1730723158728,4.03534,2478.1,2478.0,0.55]
[1730723159324,4.03572,2477.9,2477.8,0.55]
[1730723159622,4.03572,2477.9,2477.8,0.76088253]
[1730723159922,4.07201319,2477.9,2477.8,0.76088253]
[1730723160124,0.03629319,2477.9,2477.8,0.76088253]
[1730723160286,0.03629319,2477.9,2477.8,6.57481558]
[1730723160487,4.03513,2478.3,2477.8,6.57481558]
[1730723160795,4.03534,2478.1,2478.0,0.55]
[1730723161119,4.03534,2478.1,2477.9,0.55]
[1730723161423,3.81670561,2478.6,2478.1,1.321]
[1730723161627,4.03518,2478.2,2478.0,0.55]
[1730723162319,4.03534,2478.1,2478.0,0.55]
[1730723162519,4.03534,2478.1,2478.0,0.7610168]
[1730723162897,4.03519,2478.2,2478.0,0.7610168]
[1730723163220,4.03519,2478.2,2478.1,0.55]
[1730723163426,4.03519,2478.2,2477.8,0.55]
[1730723163727,4.03519,2478.2,2477.7,0.7717]
[1730723163728,4.03534,2478.1,2478.0,0.55]
[1730723163928,4.03534,2478.1,2478.0,0.76109776]
[1730723164124,4.03519,2478.2,2478.0,0.76109776]
[1730723164335,4.03519,2478.2,2478.1,0.76105974]
[1730723164840,4.03519,2478.2,2478.1,0.55]
[1730723164993,4.03519,2478.2,2477.7,11.84351]
[1730723164994,4.03519,2478.2,2477.9,3.55]
[1730723165329,4.03519,2478.2,2478.1,0.55]
[1730723165530,4.03519,2478.2,2477.9,3.55]
[1730723165731,4.0354,2478.1,2478.0,0.76095561]
[1730723167633,4.03603,2477.7,2477.4,0.8247]
[1730723167942,4.03611,2477.7,2477.5,0.54856052]
[1730723168094,4.03585,2477.8,2477.6,0.54856052]
[1730723168095,4.84396,2477.8,2477.6,0.54856052]
[1730723168431,4.84396,2477.8,2477.7,0.21097717]
[1730723170034,6.11359656,2477.8,2477.7,0.21097717]
[1730723170339,4.03649,2477.4,2477.3,0.55]
[1730723170572,4.03648,2477.4,2477.3,0.55]
[1730723170845,4.81218,2477.4,2477.3,0.5485131]
[1730723171145,4.81218,2477.4,2477.3,0.21097591]
[1730723172137,4.81218,2477.4,2477.3,0.76097591]
[1730723173538,3.81218,2477.4,2477.3,0.76097591]
[1730723177019,0.01,2478.0,2477.4,0.55]
[1730723177020,3.81670561,2478.0,2477.4,0.55]
[1730723177364,4.0359,2477.8,2477.6,0.55]
[1730723177655,4.036,2477.7,2477.6,0.55]
[1730723177865,4.03617,2477.6,2477.4,0.55]
[1730723178016,4.03661,2477.4,2477.2,0.33725231]
[1730723178224,8.61221561,2477.4,2477.3,0.210798]
[1730723178462,8.61221561,2477.4,2476.7,4.0980882]
[1730723178463,4.0371,2477.1,2476.7,0.4821234]
[1730723178644,4.0371,2477.1,2476.8,0.5481363]
[1730723178645,4.0373,2476.9,2476.8,0.5481363]
[1730723179237,0.7589,2477.0,2476.8,0.5481363]
[1730723179532,0.7589,2477.0,2476.9,0.21081401]
[1730723179768,0.7589,2477.0,2476.9,0.76081401]
[1730723180135,0.7589,2477.0,2476.9,0.55]
[1730723180367,0.7589,2477.0,2476.8,0.55]
[1730723182829,4.79612,2477.0,2476.7,0.55]
[1730723183039,4.03732,2476.9,2476.7,0.55]
[1730723183239,4.03773,2476.7,2476.5,0.33702559]
[1730723183442,4.03773,2476.7,2476.4,0.8331]
[1730723183674,4.03773,2476.7,2476.5,0.21061488]
[1730723183829,4.79618,2477.0,2476.4,0.8331]
[1730723183830,4.03749,2476.8,2476.4,0.8331]
[1730723184042,4.03749,2476.8,2476.5,0.21060176]
[1730723184272,8.07504,2476.8,2476.4,0.8331]
[1730723184478,4.03749,2476.8,2476.4,0.8331]
[1730723184659,4.03749,2476.8,2476.5,0.55]
[1730723184974,8.07503,2476.8,2476.5,0.55]
[1730723185293,8.07512,2476.8,2476.5,0.55]
[1730723185732,4.03749,2476.8,2476.5,0.55]
[1730723186878,0.8226,2477.3,2476.7,1.3091]
[1730723187094,4.03673,2477.3,2476.9,0.55]
[1730723187232,0.8226,2477.5,2476.9,0.55]
[1730723187233,4.03682,2477.2,2476.9,0.55]
[1730723187586,4.03682,2477.2,2476.8,4.58745]
[1730723187738,4.03682,2477.2,2476.8,5.22396156]
[1730723187950,4.03668,2477.3,2476.9,0.8155]
[1730723188156,4.03681,2477.2,2477.0,0.55]
[1730723189044,3.81670561,2477.7,2477.1,0.8155]
[1730723189249,4.03644,2477.5,2477.2,0.55]
[1730723189660,4.0364,2477.5,2477.2,0.55]
[1730723191181,4.03653,2477.4,2477.2,0.55]
[1730723191680,4.03665,2477.3,2477.2,0.55]
[1730723191885,4.03688,2477.2,2477.0,0.55]
[1730723192069,4.03688,2477.2,2476.9,3.0]
[1730723192070,4.03688,2477.2,2476.9,0.55]
[1730723192605,4.03665,2477.3,2476.9,3.55]
[1730723192785,4.03665,2477.3,2476.9,4.45123716]
[1730723193560,4.03665,2477.3,2477.1,0.55]
[1730723193792,4.03681,2477.2,2477.1,0.55]
[1730723194000,4.03681,2477.2,2477.0,0.55]
[1730723194159,4.03681,2477.2,2476.9,0.55]
[1730723194357,4.03681,2477.2,2477.1,0.55]
[1730723194593,4.03665,2477.3,2477.1,0.55]
[1730723194798,4.03712,2477.1,2476.9,0.55]
[1730723195003,4.03714,2477.0,2476.7,0.88705235]
[1730723195208,4.03714,2477.0,2476.8,0.21065254]
[1730723195422,4.03731,2476.9,2476.7,0.55]
[1730723195624,4.03731,2476.9,2476.8,0.21072058]
[1730723196331,4.03731,2476.9,2476.8,0.76072058]
[1730723197189,4.03716,2477.0,2476.8,0.76072058]
[1730723197419,4.03716,2477.0,2476.7,0.33738066]
[1730723197420,4.03699,2477.1,2476.9,0.76072058]
[1730723197624,4.03699,2477.1,2476.9,0.55]
[1730723197784,4.03699,2477.1,2476.8,0.55]
[1730723198138,4.03699,2477.1,2476.9,0.21083395]
[1730723198433,4.03699,2477.1,2476.8,0.55]
[1730723198586,4.03699,2477.1,2476.9,0.21085916]
[1730723198783,4.03684,2477.2,2476.8,0.55]
[1730723199086,4.03684,2477.2,2476.9,0.21088057]
[1730723199297,4.03684,2477.2,2477.0,0.21088057]
[1730723199497,4.03697,2477.1,2476.8,0.55]
[1730723199796,4.03697,2477.1,2476.9,0.2109285]
[1730723200001,4.03684,2477.2,2477.0,0.2109285]
[1730723200214,4.03684,2477.2,2476.8,4.58745]
[1730723200404,4.03684,2477.2,2477.0,0.55]
[1730723200799,4.03684,2477.2,2476.9,0.55]
[1730723201130,4.03684,2477.2,2477.0,0.21099808]
[1730723201285,4.03684,2477.2,2476.9,0.55]
[1730723201491,4.03684,2477.2,2477.0,0.21100631]
[1730723201789,4.03684,2477.2,2476.9,1.335]
[1730723201790,4.79355,2477.3,2477.1,0.21100511]
[1730723201990,4.79355,2477.3,2476.9,1.335]
[1730723202227,4.79355,2477.3,2477.1,0.55]
[1730723202599,4.79355,2477.3,2476.9,4.8223]
[1730723202600,4.03675,2477.3,2477.0,0.55]
[1730723202836,4.03675,2477.3,2477.1,0.21101852]
[1730723203105,4.03649,2477.4,2477.0,0.55]
[1730723203306,4.03649,2477.4,2477.1,0.21102203]
[1730723203484,4.03649,2477.4,2477.2,0.21102203]
[1730723203682,4.03649,2477.4,2477.0,0.55]
[1730723203683,4.03626,2477.6,2477.0,0.55]
[1730723203926,0.8074,2477.7,2477.2,5.40399]
[1730723204134,0.8074,2477.7,2477.4,0.55]
[1730723204135,4.03616,2477.6,2477.4,0.55]
[1730723204289,4.03616,2477.6,2477.2,0.8173]
[1730723204497,4.03634,2477.5,2477.3,0.76103144]
[1730723204795,4.03634,2477.5,2477.3,0.55]
[1730723204992,4.03594,2477.8,2477.4,0.7916]
[1730723205344,4.58810561,2478.1,2477.4,0.7916]
[1730723205345,4.03616,2477.6,2477.5,0.76098407]
[1730723206334,4.036,2477.7,2477.5,0.76098407]
[1730723206489,4.036,2477.7,2477.5,0.55]
[1730723206490,8.07211,2477.7,2477.5,0.55]
[1730723206707,4.036,2477.7,2477.5,0.55]
[1730723207948,4.03648,2477.4,2477.1,3.7618]
[1730723208154,4.03648,2477.4,2477.2,1.09857385]
[1730723208314,4.03648,2477.4,2477.3,0.76098229]
[1730723208508,4.03633,2477.5,2477.3,0.76099636]
[1730723208708,4.03633,2477.5,2477.4,0.21099636]
[1730723210910,4.03648,2477.4,2477.2,0.55]
[1730723211109,4.03648,2477.4,2477.3,0.76097247]
[1730723211916,4.03648,2477.4,2477.3,0.21096574]
[1730723212138,4.521598,2477.4,2477.3,0.21096574]
[1730723212458,4.521598,2477.4,2477.0,0.55]
[1730723212459,4.0369,2477.2,2477.0,0.55]
[1730723212639,4.03671,2477.3,2477.1,0.21102546]
[1730723212951,4.03671,2477.3,2477.0,0.55]
[1730723213251,4.03671,2477.3,2477.1,0.21100525]
[1730723213460,4.03671,2477.3,2477.0,0.55]
[1730723213612,4.03671,2477.3,2477.1,0.2110274]
[1730723213807,4.03671,2477.3,2477.2,0.2110212]
[1730723214560,4.03671,2477.3,2477.0,0.55]
[1730723214772,4.03671,2477.3,2477.1,0.76109368]
[1730723214773,4.03681,2477.2,2477.1,0.76109368]
[1730723214935,4.03681,2477.2,2477.1,0.21109368]
[1730723215266,4.03681,2477.2,2477.0,0.55]
[1730723215420,4.03681,2477.2,2477.1,0.2111474]
[1730723216623,0.8287,2477.7,2477.2,0.55]
[1730723216945,4.03648,2477.4,2477.3,0.2111474]
[1730723217325,4.03648,2477.4,2477.3,0.7611474]
[1730723217537,4.03648,2477.4,2477.3,0.2111474]
[1730723218830,4.03648,2477.4,2477.0,0.55]
[1730723219061,4.03648,2477.4,2477.1,0.54901483]
[1730723219258,4.03673,2477.3,2477.2,0.76115402]
[1730723219820,4.03673,2477.3,2477.2,0.21115402]
[1730723221240,4.03673,2477.3,2477.0,0.55]
[1730723221444,4.03673,2477.3,2477.2,0.21113317]
[1730723222471,4.81013,2477.3,2477.2,0.21113317]
[1730723222832,4.81013,2477.3,2477.0,0.55]
[1730723223038,4.81013,2477.3,2477.1,0.21117069]
[1730723223236,4.81013,2477.3,2477.2,0.21117069]
[1730723223675,4.03651,2477.4,2477.2,0.21117069]
[1730723223897,3.30749045,2477.8,2477.4,0.55]
[1730723224184,3.30749045,2477.8,2477.5,0.21114429]
[1730723224185,4.036,2477.7,2477.5,0.21114429]
[1730723224336,4.03584,2477.8,2477.6,0.2110499]
[1730723224537,4.03584,2477.8,2477.4,4.58647]
[1730723224751,4.03584,2477.8,2477.5,0.21103625]
[1730723224989,4.03584,2477.8,2477.6,0.21103625]
[1730723225195,6.57540045,2478.2,2477.7,0.8323]
[1730723225354,4.03543,2478.1,2477.8,0.76101353]
[1730723225550,4.03543,2478.1,2477.9,0.21090113]
[1730723225783,4.03551,2478.0,2477.8,0.55]
[1730723226084,4.03526,2478.2,2477.9,0.2109017]
[1730723226287,4.03526,2478.2,2477.8,0.55]
[1730723226443,4.03545,2478.1,2477.9,0.21082223]
[1730723226780,4.03545,2478.1,2477.8,0.55]
[1730723227079,4.03526,2478.2,2477.8,0.55]
[1730723227080,4.03526,2478.2,2477.9,0.21082413]
[1730723227281,4.03526,2478.2,2477.8,4.58583]
[1730723227487,8.07055,2478.2,2477.9,0.21076522]
[1730723227653,4.03545,2478.1,2477.8,0.55]
[1730723227856,4.03552,2478.0,2477.9,0.55]
[1730723228176,4.03545,2478.1,2477.5,3.0]
[1730723228177,3.81670561,2478.1,2477.5,3.0]
[1730723228356,0.7682,2478.0,2477.6,0.210841]
[1730723228540,4.036,2477.7,2477.3,0.42173168]
[1730723228745,4.03618,2477.6,2477.4,0.54823798]
[1730723228941,4.03618,2477.6,2477.5,0.21085312]
[1730723229355,4.03602,2477.7,2477.5,0.21085312]
[1730723229575,4.03579,2477.9,2477.6,0.21085312]
[1730723229783,4.03583,2477.8,2477.4,4.03645]
[1730723230084,4.036,2477.7,2477.6,0.55]
[1730723230291,4.036,2477.7,2477.6,0.76085635]
[1730723230877,4.03585,2477.8,2477.6,0.76085635]
[1730723231075,4.03585,2477.8,2477.5,0.55]
[1730723231343,4.03585,2477.8,2477.6,0.21087705]
[1730723231678,4.03585,2477.8,2477.5,0.55]
[1730723231988,4.03585,2477.8,2477.6,0.21087774]
[1730723232151,4.03585,2477.8,2477.5,0.55]
[1730723232482,4.03585,2477.8,2477.6,0.2108752]
[1730723232678,4.03585,2477.8,2477.5,0.55]
[1730723232934,4.03585,2477.8,2477.6,0.2108828]
[1730723233070,4.036,2477.7,2477.4,0.55]
[1730723233384,4.036,2477.7,2477.6,0.55]
[1730723233678,4.03623,2477.6,2477.4,0.55]
[1730723233888,4.03623,2477.6,2477.5,0.21097672]
[1730723234053,4.03623,2477.6,2477.3,3.0]
[1730723234054,4.84733,2477.6,2477.2,0.8131]
[1730723234263,4.03643,2477.5,2477.3,0.21100525]
[1730723234470,4.84733,2477.6,2477.4,0.21100525]
[1730723234679,8.88361,2477.6,2477.2,0.33766262]
[1730723234879,8.88361,2477.6,2477.3,0.2110095]
[1730723235141,8.88361,2477.6,2477.4,0.2110095]
[1730723235142,4.03632,2477.5,2477.4,0.2110095]
[1730723235348,4.03661,2477.4,2477.2,0.55]
[1730723235572,4.03661,2477.4,2477.3,0.21102121]
[1730723235773,4.03661,2477.4,2477.3,0.76102121]
[1730723236291,4.03661,2477.4,2476.8,0.4221227]
[1730723236292,4.03728,2477.0,2476.8,0.4221227]
[1730723236589,4.03795,2476.5,2476.4,0.42218466]
[1730723236802,4.03795,2476.5,2476.4,0.21114383]
[1730723237366,4.0378,2476.6,2476.2,0.33790441]
[1730723237559,4.03811,2476.4,2476.3,0.21103872]
[1730723237959,4.03811,2476.4,2476.1,0.7696]
[1730723238199,4.03811,2476.4,2476.2,0.21105827]
[1730723238406,2.15605452,2476.7,2476.1,0.7696]
[1730723238585,2.15605452,2476.7,2476.2,0.21093002]
[1730723238586,4.03789,2476.6,2476.2,0.21093002]
[1730723238798,2.14911177,2476.5,2476.3,0.21093599]
[1730723239109,2.14911177,2476.5,2476.1,4.80813]
[1730723239110,2.14911177,2476.5,2476.2,4.03834]
[1730723239299,2.14911177,2476.5,2476.4,4.03811]
[1730723240080,2.14911177,2476.5,2476.4,5.58701939]
[1730723240286,2.14911177,2476.5,2476.4,8.58699128]
[1730723240469,2.14911177,2476.5,2476.4,8.92415629]
[1730723240805,2.14911177,2476.5,2476.4,8.58699128]
[1730723240964,2.14911177,2476.5,2476.4,9.89840347]
[1730723241602,2.14911177,2476.5,2476.4,5.86029347]
[1730723242104,2.14911177,2476.5,2476.4,9.68762219]
[1730723242267,2.14911177,2476.5,2476.4,9.89830021]
[1730723242468,2.14911177,2476.5,2476.4,5.86019021]
[1730723243604,2.14911177,2476.5,2476.4,9.89830021]
[1730723244178,2.14911177,2476.5,2476.4,5.86019021]
[1730723245487,2.14911177,2476.5,2476.4,0.76067802]
[1730723245780,2.14911177,2476.5,2476.4,0.55]
[1730723246712,4.03815,2476.4,2476.1,3.0]
[1730723246920,4.03815,2476.4,2476.0,0.8244]
[1730723247075,4.03829,2476.3,2476.1,0.21061137]
[1730723247273,4.03844,2476.2,2475.8,0.8244]
[1730723247510,4.03844,2476.2,2475.9,0.21058752]
[1730723247672,4.03844,2476.2,2475.8,0.8244]
[1730723247875,4.03811,2476.4,2475.9,0.21058953]
[1730723248104,4.03811,2476.4,2475.8,6.12437897]
[1730723248299,4.03811,2476.4,2475.9,4.24936365]
[1730723248509,4.03811,2476.4,2476.0,4.03873]
[1730723248874,4.03811,2476.4,2476.1,0.55]
[1730723249318,0.7894,2476.5,2475.8,2.08524601]
[1730723249319,4.03831,2476.3,2475.9,0.55]
[1730723249613,4.03831,2476.3,2475.9,7.79944516]
[1730723249820,4.03831,2476.3,2475.9,7.58893]
[1730723250169,4.0383,2476.3,2475.9,8.54729511]
[1730723250991,5.99148889,2476.3,2475.9,1.50845511]
[1730723251176,4.03847,2476.2,2475.9,3.76044576]
[1730723251377,4.03923,2475.8,2475.6,0.7591]
[1730723251788,4.03923,2475.8,2474.9,1.2830023]
[1730723251789,0.8173,2475.8,2475.4,4.03971]
[1730723251920,8.89475,2476.1,2475.4,4.03971]
[1730723252126,1.91105628,2476.2,2475.9,4.03878]
[1730723252417,1.91105628,2476.2,2475.7,0.7591]
[1730723252418,2.72595628,2476.2,2475.7,0.7591]
[1730723252856,2.72595628,2476.2,2475.8,4.03908]
[1730723253155,2.72595628,2476.2,2475.9,3.0]
[1730723253156,1.91105628,2476.2,2475.9,3.0]
[1730723253355,1.91105628,2476.2,2475.7,7.79829]
[1730723253356,5.94952628,2476.2,2475.7,7.79829]
[1730723253857,1.91105628,2476.2,2476.0,0.55]
[1730723254034,5.94959628,2476.2,2476.0,0.55]
[1730723254221,1.91105628,2476.2,2475.9,0.55]
[1730723254559,4.03804,2476.5,2476.1,0.55]
[1730723254939,0.8149,2476.6,2476.2,4.81582]
[1730723255144,4.85271,2476.6,2476.2,0.7774]
[1730723256021,4.03796,2476.5,2476.2,0.7774]
[1730723256222,4.03818,2476.4,2476.1,0.55]
[1730723256423,4.03818,2476.4,2476.0,1.3458]
[1730723257366,0.8149,2476.6,2476.0,5.38456]
[1730723257518,4.03797,2476.5,2476.0,6.02827256]
[1730723257719,8.07605,2476.5,2476.0,6.02827256]
[1730723258169,4.03779,2476.6,2476.1,7.03845]
[1730723258460,4.03779,2476.6,2476.2,0.55]
[1730723258865,6.70211932,2476.8,2476.4,0.55]
[1730723259070,4.03765,2476.7,2476.4,0.55]
[1730723259768,4.03779,2476.6,2476.3,0.55]
[1730723259940,6.70211932,2476.8,2476.3,3.55]
[1730723259941,4.03765,2476.7,2476.3,3.55]
[1730723260329,4.03765,2476.7,2476.3,4.5296533]
[1730723263392,4.03782,2476.6,2476.4,0.21111773]
[1730723263670,4.03782,2476.6,2476.1,4.58854]
[1730723263671,4.03791,2476.6,2476.1,4.58854]
[1730723263841,4.03791,2476.6,2476.2,3.21114353]
[1730723264049,4.03791,2476.6,2476.3,0.76114353]
[1730723264281,4.03791,2476.6,2476.3,0.55]
[1730723264446,4.03791,2476.6,2476.4,0.21124217]
[1730723264644,4.03791,2476.6,2476.3,0.55]
[1730723264885,4.03791,2476.6,2476.4,0.21123091]
[1730723265084,4.03791,2476.6,2476.3,0.55]
[1730723265282,4.03791,2476.6,2476.4,0.21123062]
[1730723265595,4.03791,2476.6,2476.5,0.21140286]
[1730723266343,4.46074617,2476.6,2476.0,0.7958]
[1730723266580,4.46074617,2476.6,2476.1,1.09990896]
[1730723266581,4.03819,2476.4,2476.1,1.09990896]
[1730723266793,4.03819,2476.4,2476.2,0.54990896]
[1730723266965,4.03819,2476.4,2476.3,0.21149578]
[1730723268461,4.03798,2476.5,2476.3,0.21149578]
[1730723268657,4.03798,2476.5,2476.1,3.55]
[1730723268658,4.03798,2476.5,2476.4,0.21149578]
[1730723271086,5.7963024,2476.5,2476.4,0.21149578]
[1730723271243,5.7963024,2476.5,2476.1,0.55]
[1730723271244,4.03828,2476.4,2476.1,0.55]
[1730723271443,4.03828,2476.3,2476.2,1.0996724]
[1730723271645,4.03828,2476.4,2476.2,0.5496724]
[1730723271845,4.03828,2476.4,2476.3,0.2114048]
[1730723272258,5.02173724,2476.4,2476.3,0.2114048]
[1730723272461,8.07777,2476.0,2475.8,0.33831253]
[1730723272754,8.07777,2476.0,2475.5,4.39044075]
[1730723272755,4.86886,2476.0,2475.9,0.54974974]
[1730723273062,4.86886,2476.0,2475.5,0.7796]
[1730723273063,4.03907,2475.9,2475.5,0.7796]
[1730723273260,4.03912,2475.8,2475.6,0.42287714]
[1730723273458,5.93282022,2476.0,2475.7,0.21143798]
[1730723273693,5.93282022,2476.0,2475.8,0.54967184]
[1730723273848,5.93282022,2476.0,2475.6,0.42281723]
[1730723273849,5.93282022,2476.0,2475.9,0.21143798]
[1730723274050,7.01297724,2476.0,2475.9,0.21143798]
[1730723277761,1.89389022,2476.0,2475.9,0.21143798]
[1730723278397,1.89389022,2476.0,2475.9,0.98153798]
[1730723278551,1.89389022,2476.0,2475.9,1.31962705]
[1730723279180,1.89389022,2476.0,2475.9,4.31962705]
[1730723279597,1.89389022,2476.0,2475.9,1.31962705]
[1730723279954,1.89389022,2476.0,2475.9,4.31962705]
[1730723280384,1.89389022,2476.0,2475.9,10.04442876]
[1730723280584,1.89389022,2476.0,2475.9,10.46696396]
[1730723282384,1.89389022,2476.0,2475.9,9.49490171]
[1730723282550,1.89389022,2476.0,2475.9,10.46652653]
[1730723282756,1.89389022,2476.0,2475.9,10.76812828]
[1730723284504,4.03781,2476.6,2476.0,0.55]
[1730723284674,4.03781,2476.6,2476.2,0.55]
[1730723285018,4.03781,2476.6,2476.3,0.54915977]
[1730723285165,4.03781,2476.6,2476.4,0.21120764]
[1730723285497,4.85762,2476.8,2476.5,0.21120764]
[1730723285732,4.03765,2476.7,2476.4,0.55]
[1730723286032,4.03765,2476.7,2476.5,0.21120499]
[1730723286208,4.03765,2476.7,2476.3,0.55]
[1730723286415,5.343382,2476.8,2476.4,0.54908789]
[1730723286615,4.03763,2476.7,2476.5,0.21117999]
[1730723286796,4.03763,2476.7,2476.4,3.0]
[1730723287133,4.03763,2476.7,2476.5,0.21114591]
[1730723287425,4.03763,2476.7,2476.6,0.21114591]
[1730723288000,4.03763,2476.7,2476.3,7.58828]
[1730723288187,4.03763,2476.7,2476.4,0.21113643]
[1730723288392,4.03763,2476.7,2476.5,0.21113643]
[1730723288592,4.03763,2476.7,2476.3,7.58828]
[1730723288828,4.03763,2476.7,2476.4,0.21112551]
[1730723289034,4.03763,2476.7,2476.5,0.21112551]
[1730723289366,4.03763,2476.7,2476.3,7.58828]
[1730723289537,0.7821,2477.0,2476.6,0.8263]
[1730723289701,4.03737,2476.9,2476.6,0.8263]
[1730723289897,4.03704,2477.1,2476.7,0.76107155]
[1730723290219,3.7408639,2477.2,2476.7,0.76107155]
[1730723290220,4.03731,2476.9,2476.7,0.55]
[1730723290540,0.7821,2477.2,2476.7,0.55]
[1730723290721,4.03736,2476.9,2476.6,0.55]
[1730723290926,4.03736,2476.9,2476.7,0.21105539]
[1730723291129,4.03729,2477.0,2476.7,3.0]
[1730723291899,4.03701,2477.1,2476.7,3.0]
[1730723292148,4.03706,2477.1,2476.8,0.76100001]
[1730723292353,4.03706,2477.1,2476.8,1.3693]
[1730723292655,4.0373,2476.9,2476.6,0.55]
[1730723292802,4.03748,2476.8,2476.7,0.21096443]
[1730723293003,4.85988,2476.8,2476.7,0.21096443]
[1730723293227,1.712118,2476.8,2476.3,0.55]
[1730723293428,4.03771,2476.7,2476.4,0.21101159]
[1730723293631,4.03781,2476.6,2476.5,0.21101159]
[1730723293856,4.03771,2476.7,2476.5,0.21101159]
[1730723294063,4.03651,2477.4,2476.7,4.0375]
[1730723294228,4.03419723,2477.5,2477.0,4.03705]
[1730723294424,0.48565972,2477.5,2476.9,4.58721]
[1730723294668,6.45279391,2477.9,2477.2,3.0]
[1730723294840,6.45279391,2477.9,2477.1,1.3693]
[1730723294841,4.03656,2477.4,2477.1,1.3693]
[1730723295026,4.03656,2477.4,2477.1,4.3693]
[1730723296087,0.8224,2477.5,2476.9,3.55]
[1730723296289,4.03627,2477.6,2476.9,3.55]
[1730723296290,4.03627,2477.6,2477.1,4.03685]
[1730723296573,4.03634,2477.5,2477.1,4.03685]
[1730723297984,4.82231,2477.7,2477.3,0.55]
[1730723298480,8.85845,2477.7,2477.3,0.55]
[1730723298831,4.82231,2477.7,2477.3,0.55]
[1730723299261,4.03622,2477.6,2477.3,0.55]
[1730723301828,4.03622,2477.6,2477.2,7.84474]
[1730723301829,4.03648,2477.4,2477.2,0.808]
[1730723302026,4.03666,2477.3,2477.0,3.0]
[1730723302270,4.03666,2477.3,2476.9,3.763]
[1730723302839,4.03666,2477.3,2476.9,0.763]
[1730723303348,4.03666,2477.3,2477.0,0.55]
[1730723303527,4.78916,2477.3,2477.0,0.55]
[1730723303731,4.78916,2477.3,2476.7,0.753]
[1730723303967,4.78895,2477.5,2477.0,0.55]
[1730723304178,4.03674,2477.3,2477.0,0.55]
[1730723304356,4.0365,2477.4,2477.0,0.55]
[1730723304783,4.03673,2477.3,2476.9,3.0]
[1730723304977,4.03681,2477.2,2476.8,0.55]
[1730723305181,3.81670561,2477.6,2476.7,0.753]
[1730723305182,4.03715,2477.0,2476.7,0.753]
[1730723305480,4.03738,2476.9,2476.6,0.55]
[1730723305675,4.03738,2476.9,2476.6,0.21040328]